Workbook

Sheet Sheet1
A1: Projectile motion with Air Resistance
A3: Instructions: | C3: Set values in yellow boxes
C4: Avoid u=0 (try .001 instead)
C5: Avoid ɵ=90 (try 89.99 instead)
C6: Use slider beside graphs to set air resistance
C7: Use a small time increment (around 0.005)
D8: If RHS of graph is truncated, increase time increment
D9: If graph is too compressed on x-axis, decrease time increment
A13: aair=k.A.v2/m | C13: let k.A/m= | E13: =O16/1000 -> 0.031 | G13: don't touch, set with slider | N13: don't touch, intermediate values
A14: u | B14: 18
A15: ɵ to horz | B15: =P16 -> 56 | C15: don't touch, set with slider
A16: av | B16: -9.8 | N16: =B15*PI()/180 -> 0.9773843811 | O16: 31 | P16: 56
A17: sv:launch | B17: 0
A18: sv:land | B18: 0
A19: uh | B19: =$B$14*COS($N$16) -> 10.06547226 | C19: don't touch, automatically calculated
A20: uv | B20: =$B$14*SIN($N$16) -> 14.92267631
A21: time inc
A22: 0.005
A23: time | B23: sno air resist:x | C23: sno air resist:xy | D23: sno air resist:t:trn | E23: truncate | F23: aair | G23: aair:x | H23: aair:y | I23: vair resist:x | J23: vair resist:y | K23: ɵ to horz | L23: vair resist | M23: sair resist:x | N23: sair resist:y | O23: sair resist:y:trn | P23: truncate | R23: Set air resistance
A24: 0 | B24: =IF(E24=0,B23,$B$19*A24) -> 0 | C24: =$B$20*A24+0.5*$B$20*A24^2+$B$17 -> 0 | D24: =IF(E24=1,C24,$B$18) -> 0 | E24: =IF(AND(C25-C24<0,C24<$B$18),0,1) -> 1 | I24: =B19 -> 10.06547226 | J24: =B20 -> 14.92267631 | K24: =180/PI()*ATAN(J24/I24) -> 56 | L24: =SQRT(I24^2+J24^2) -> 18 | M24: 0 | N24: =$B$17 -> 0 | O24: =IF(P24=1,N24,$B$18) -> 0 | P24: =IF(AND(N25-N24<0,N24<$B$18),0,1) -> 1 | R24: none
A25: =A24+$A$22 -> 0.005 | B25: 0.05032736131 | C25: =$B$20*A25+0.5*$B$16*A25^2+$B$17 -> 0.07449088153 | D25: =IF(E25=1,C25,$B$18) -> 0.07449088153 | E25: =IF(AND(C26-C25<0,C25<$B$18),0,1) -> 1 | F25: =-$E$13*L24^2 -> -10.044 | G25: =$F25*COS(PI()/180*$K24) -> -5.616533522 | H25: =$F25*SIN(PI()/180*$K24) -> -8.326853379 | I25: =I24+G25*$A$22 -> 10.03738959 | J25: =J24+(H25+$B$16)*$A$22 -> 14.83204204 | K25: =180/PI()*ATAN(J25/I25) -> 55.91233931 | L25: =SQRT(I25^2+J25^2) -> 17.90917812 | M25: =IF(P25=0,M24,M24+I25*$A$22) -> 0.05018694797 | N25: =N24+J25*$A$22 -> 0.0741602102 | O25: =IF(P25=1,N25,$B$18) -> 0.0741602102 | P25: 1
A26: =A25+$A$22 -> 0.01 | B26: 0.1006547226 | C26: 0.1487367631 | D26: 0.1487367631 | E26: 1 | F26: -9.942898489 | G26: =$F26*COS(PI()/180*$K25) -> -5.572603341 | H26: =$F26*SIN(PI()/180*$K25) -> -8.234520166 | I26: =I25+G26*$A$22 -> 10.00952658 | J26: 14.74186944 | K26: =180/PI()*ATAN(J26/I26) -> 55.82403477 | L26: =SQRT(I26^2+J26^2) -> 17.81890392 | M26: =IF(P26=0,M25,M25+I26*$A$22) -> 0.1002345809 | N26: 0.1478695574 | O26: 0.1478695574 | P26: 1
A27: 0.015 | B27: 0.1509820839 | C27: 0.2227376446 | D27: 0.2227376446 | E27: 1 | F27: -9.842913442 | G27: -5.529122563 | H27: -8.143202608 | I27: 9.981880965 | J27: 14.65215343 | K27: 55.73508129 | L27: 17.72917222 | M27: 0.1501439857 | N27: 0.2211303245 | O27: 0.2211303245 | P27: 1
A28: 0.02 | B28: 0.2013094452 | C28: 0.2964935261 | D28: 0.2964935261 | E28: 1 | F28: -9.744029976 | G28: -5.486085088 | H28: -8.052887096 | I28: 9.95445054 | J28: 14.56288899 | K28: 55.6454737 | L28: 17.63997793 | M28: 0.1999162384 | N28: 0.2939447695 | O28: 0.2939447695 | P28: 1
A29: 0.025 | B29: 0.2516368066 | C29: 0.3700044076 | D29: 0.3700044076 | E29: 1 | F29: -9.64623346 | G29: -5.443484922 | H29: -7.96356025 | I29: 9.927233115 | J29: 14.47407119 | K29: 55.55520681 | L29: 17.55131602 | M29: 0.249552404 | N29: 0.3663151254 | O29: 0.3663151254 | P29: 1
A30: 0.03 | B30: 0.3019641679 | C30: 0.4432702892 | D30: 0.4432702892 | E30: 1 | F30: -9.549509517 | G30: -5.401316174 | H30: -7.875208924 | I30: 9.900226534 | J30: 14.38569514 | K30: 55.46427538 | L30: 17.46318156 | M30: 0.2990535366 | N30: 0.4382436011 | O30: 0.4382436011 | P30: 1
A31: 0.035 | B31: 0.3522915292 | C31: 0.5162911707 | D31: 0.5162911707 | E31: 1 | F31: -9.453844016 | G31: -5.359573057 | H31: -7.787820191 | I31: 9.873428669 | J31: 14.29775604 | K31: 55.37267408 | L31: 17.37556968 | M31: 0.34842068 | N31: 0.5097323813 | O31: 0.5097323813 | P31: 1
A32: 0.04 | B32: 0.4026188905 | C32: 0.5890670522 | D32: 0.5890670522 | E32: 1 | F32: -9.359223068 | G32: -5.318249881 | H32: -7.701381346 | I32: 9.84683742 | J32: 14.21024914 | K32: 55.28039758 | L32: 17.28847557 | M32: 0.3976548671 | N32: 0.580783627 | O32: 0.580783627 | P32: 1
A33: 0.045 | B33: 0.4529462518 | C33: 0.6615979338 | D33: 0.6615979338 | E33: 1 | F33: -9.265633018 | G33: -5.277341055 | H33: -7.615879898 | I33: 9.820450714 | J33: 14.12316974 | K33: 55.18744045 | L33: 17.20189454 | M33: 0.4467571207 | N33: 0.6513994757 | O33: 0.6513994757 | P33: 1 | R33: lots
A34: 0.05 | B34: 0.5032736131 | C34: 0.7338838153 | D34: 0.7338838153 | E34: 1 | F34: -9.173060445 | G34: -5.236841082 | H34: -7.531303566 | I34: 9.794266509 | J34: 14.03651322 | K34: 55.09379724 | L34: 17.11582191 | M34: 0.4957284532 | N34: 0.7215820418 | O34: 0.7215820418 | P34: 1
A35: 0.055 | B35: 0.5536009744 | C35: 0.8059246968 | D35: 0.8059246968 | E35: 1 | F35: -9.081492154 | G35: -5.196744562 | H35: -7.447640277 | I35: 9.768282786 | J35: 13.95027502 | K35: 54.99946243 | L35: 17.03025313 | M35: 0.5445698671 | N35: 0.7913334169 | O35: 0.7913334169 | P35: 1 | R35: Set air launch angle
A36: 0.06 | B36: 0.6039283357 | C36: 0.8777205784 | D36: 0.8777205784 | E36: 1 | F36: -8.990915171 | G36: -5.157046183 | H36: -7.364878158 | I36: 9.742497555 | J36: 13.86445063 | K36: 54.90443046 | L36: 16.94518368 | M36: 0.5932823549 | N36: 0.86065567 | O36: 0.86065567 | P36: 1
A37: 0.065 | B37: 0.6542556971 | C37: 0.9492714599 | D37: 0.9492714599 | E37: 1 | F37: -8.901316744 | G37: -5.117740727 | H37: -7.283005535 | I37: 9.716908852 | J37: 13.7790356 | K37: 54.80869569 | L37: 16.86060911 | M37: 0.6418668992 | N37: 0.929550848 | O37: 0.929550848 | P37: 1 | R37: none
A38: 0.07 | B38: 0.7045830584 | C38: 1.020577341 | D38: 1.020577341 | E38: 1 | F38: -8.81268433 | G38: -5.07882306 | H38: -7.202010929 | I38: 9.691514736 | J38: 13.69402554 | K38: 54.71225246 | L38: 16.77652507 | M38: 0.6903244728 | N38: 0.9980209757 | O38: 0.9980209757 | P38: 1
A39: 0.075 | B39: 0.7549104197 | C39: 1.091638223 | D39: 1.091638223 | E39: 1 | F39: -8.725005598 | G39: -5.040288139 | H39: -7.121883049 | I39: 9.666313296 | J39: 13.60941613 | K39: 54.61509502 | L39: 16.69292725 | M39: 0.7386560393 | N39: 1.066068056 | O39: 1.066068056 | P39: 1
A40: 0.08 | B40: 0.805237781 | C40: 1.162454104 | D40: 1.162454104 | E40: 1 | F40: -8.638268423 | G40: -5.002131003 | H40: -7.042610793 | I40: 9.641302641 | J40: 13.52520308 | K40: 54.51721758 | L40: 16.6098114 | M40: 0.7868625525 | N40: 1.133694072 | O40: 1.133694072 | P40: 1
A41: 0.085 | B41: 0.8555651423 | C41: 1.233024986 | D41: 1.233024986 | E41: 1 | F41: -8.55246088 | G41: -4.964346775 | H41: -6.96418324 | I41: 9.616480907 | J41: 13.44138216 | K41: 54.4186143 | L41: 16.52717336 | M41: 0.8349449571 | N41: 1.200900983 | O41: 1.200900983 | P41: 1
A42: 0.09 | B42: 0.9058925036 | C42: 1.303350868 | D42: 1.303350868 | E42: 1 | F42: -8.467571241 | G42: -4.92693066 | H42: -6.886589649 | I42: 9.591846254 | J42: 13.35794921 | K42: 54.31927927 | L42: 16.44500902 | M42: 0.8829041883 | N42: 1.267690729 | O42: 1.267690729 | P42: 1
A43: 0.095 | B43: 0.9562198649 | C43: 1.373431749 | D43: 1.373431749 | E43: 1 | F43: -8.383587972 | G43: -4.889877943 | H43: -6.809819453 | I43: 9.567396864 | J43: 13.27490011 | K43: 54.21920654 | L43: 16.36331433 | M43: 0.9307411727 | N43: 1.334065229 | O43: 1.334065229 | P43: 1
A44: 0.1 | B44: 1.006547226 | C44: 1.443267631 | D44: 1.443267631 | E44: 1 | F44: -8.300499729 | G44: -4.853183987 | H44: -6.73386226 | I44: 9.543130944 | J44: 13.1922308 | K44: 54.11839009 | L44: 16.2820853 | M44: 0.9784568274 | N44: 1.400026383 | O44: 1.400026383 | P44: 1
A45: 0.105 | B45: 1.056874588 | C45: 1.512858512 | D45: 1.512858512 | E45: 1 | F45: -8.218295354 | G45: -4.816844234 | H45: -6.658707844 | I45: 9.519046723 | J45: 13.10993726 | K45: 54.01682383 | L45: 16.20131802 | M45: 1.026052061 | N45: 1.465576069 | O45: 1.465576069 | P45: 1 | R45: lots
A46: 0.11 | B46: 1.107201949 | C46: 1.582204394 | D46: 1.582204394 | E46: 1 | F46: -8.136963872 | G46: -4.780854199 | H46: -6.584346147 | I46: 9.495142452 | J46: 13.02801553 | K46: 53.91450164 | L46: 16.12100862 | M46: 1.073527773 | N46: 1.530716147 | O46: 1.530716147 | P46: 1 | R46: angle
A47: 0.115 | B47: 1.15752931 | C47: 1.651305275 | D47: 1.651305275 | E47: 1 | F47: -8.056494485 | G47: -4.745209472 | H47: -6.510767271 | I47: 9.471416404 | J47: 12.9464617 | K47: 53.81141731 | L47: 16.0411533 | M47: 1.120884855 | N47: 1.595448456 | O47: 1.595448456 | P47: 1 | R47: =B15 -> 56
A48: 0.12 | B48: 1.207856671 | C48: 1.720161157 | D48: 1.720161157 | E48: 1 | F48: -7.976876574 | G48: -4.709905717 | H48: -6.437961479 | I48: 9.447866876 | J48: 12.86527189 | K48: 53.7075646 | L48: 15.96174831 | M48: 1.16812419 | N48: 1.659774815 | O48: 1.659774815 | P48: 1 | R48: range
A49: 0.125 | B49: 1.258184033 | C49: 1.788772038 | D49: 1.788772038 | E49: 1 | F49: -7.898099687 | G49: -4.674938669 | H49: -6.365919188 | I49: 9.424492182 | J49: 12.78444229 | K49: 53.60293719 | L49: 15.88278998 | M49: 1.215246651 | N49: 1.723697027 | O49: 1.723697027 | P49: 1 | R49: =MAX(B23:B1023) -> 30.64936304
A50: 0.13 | B50: 1.308511394 | C50: 1.85713792 | D50: 1.85713792 | E50: 1 | F50: -7.820153546 | G50: -4.640304131 | H50: -6.294630971 | I50: 9.401290662 | J50: 12.70396914 | K50: 53.49752871 | L50: 15.80427467 | M50: 1.262253104 | N50: 1.787216872 | O50: 1.787216872 | P50: 1
A51: 0.135 | B51: 1.358838755 | C51: 1.925258801 | D51: 1.925258801 | E51: 1 | F51: -7.743028037 | G51: -4.605997977 | H51: -6.224087549 | I51: 9.378260672 | J51: 12.6238487 | K51: 53.39133272 | L51: 15.72619882 | M51: 1.309144407 | N51: 1.850336116 | O51: 1.850336116 | P51: 1
A52: 0.14 | B52: 1.409166117 | C52: 1.993134683 | D52: 1.993134683 | E52: 1 | F52: -7.666713206 | G52: -4.572016148 | H52: -6.154279789 | I52: 9.355400591 | J52: 12.5440773 | K52: 53.28434273 | L52: 15.6485589 | M52: 1.35592141 | N52: 1.913056502 | O52: 1.913056502 | P52: 1
A53: 0.145 | B53: 1.459493478 | C53: 2.060765564 | D53: 2.060765564 | E53: 1 | F53: -7.591199262 | G53: -4.538354652 | H53: -6.085198706 | I53: 9.332708818 | J53: 12.46465131 | K53: 53.17655218 | L53: 15.57135145 | M53: 1.402584954 | N53: 1.975379759 | O53: 1.975379759 | P53: 1
A54: 0.15 | B54: 1.509820839 | C54: 2.128151446 | D54: 2.128151446 | E54: 1 | F54: -7.516476569 | G54: -4.50500956 | H54: -6.016835454 | I54: 9.31018377 | J54: 12.38556713 | K54: 53.06795444 | L54: 15.49457308 | M54: 1.449135873 | N54: 2.037307594 | O54: 2.037307594 | P54: 1
A55: 0.155 | B55: 1.560148201 | C55: 2.195292327 | D55: 2.195292327 | E55: 1 | F55: -7.442535644 | G55: -4.471977008 | H55: -5.949181327 | I55: 9.287823885 | J55: 12.30682122 | K55: 52.95854284 | L55: 15.41822043 | M55: 1.495574993 | N55: 2.098841701 | O55: 2.098841701 | P55: 1
A56: 0.16 | B56: 1.610475562 | C56: 2.262188209 | D56: 2.262188209 | E56: 1 | F56: -7.369367156 | G56: -4.439253194 | H56: -5.882227754 | I56: 9.265627619 | J56: 12.22841008 | K56: 52.84831064 | L56: 15.34229019 | M56: 1.541903131 | N56: 2.159983751 | O56: 2.159983751 | P56: 1
A57: 0.165 | B57: 1.660802923 | C57: 2.32883909 | D57: 2.32883909 | E57: 1 | F57: -7.29696192 | G57: -4.40683438 | H57: -5.8159663 | I57: 9.243593447 | J57: 12.15033025 | K57: 52.73725101 | L57: 15.26677913 | M57: 1.588121098 | N57: 2.220735402 | O57: 2.220735402 | P57: 1
A58: 0.17 | B58: 1.711130285 | C58: 2.395244972 | D58: 2.395244972 | E58: 1 | F58: -7.225310897 | G58: -4.374716886 | H58: -5.750388659 | I58: 9.221719863 | J58: 12.07257831 | K58: 52.62535709 | L58: 15.19168405 | M58: 1.634229697 | N58: 2.281098294 | O58: 2.281098294 | P58: 1
A59: 0.175 | B59: 1.761457646 | C59: 2.461405854 | D59: 2.461405854 | E59: 1 | F59: -7.154405193 | G59: -4.342897091 | H59: -5.685486656 | I59: 9.200005377 | J59: 11.99515088 | K59: 52.51262194 | L59: 15.1170018 | M59: 1.680229724 | N59: 2.341074048 | O59: 2.341074048 | P59: 1
A60: 0.18 | B60: 1.811785007 | C60: 2.527321735 | D60: 2.527321735 | E60: 1 | F60: -7.084236048 | G60: -4.311371434 | H60: -5.62125224 | I60: 9.17844852 | J60: 11.91804462 | K60: 52.39903857 | L60: 15.0427293 | M60: 1.726121967 | N60: 2.400664271 | O60: 2.400664271 | P60: 1
A61: 0.185 | B61: 1.862112369 | C61: 2.592992617 | D61: 2.592992617 | E61: 1 | F61: -7.014794845 | G61: -4.28013641 | H61: -5.557677486 | I61: 9.157047838 | J61: 11.84125623 | K61: 52.2845999 | L61: 14.96886349 | M61: 1.771907206 | N61: 2.459870552 | O61: 2.459870552 | P61: 1
A62: 0.19 | B62: 1.91243973 | C62: 2.658418498 | D62: 2.658418498 | E62: 1 | F62: -6.946073099 | G62: -4.249188571 | H62: -5.494754589 | I62: 9.135801895 | J62: 11.76478246 | K62: 52.1692988 | L62: 14.89540139 | M62: 1.817586215 | N62: 2.518694465 | O62: 2.518694465 | P62: 1
A63: 0.195 | B63: 1.962767091 | C63: 2.72359938 | D63: 2.72359938 | E63: 1 | F63: -6.878062457 | G63: -4.218524523 | H63: -5.432475864 | I63: 9.114709273 | J63: 11.68862008 | K63: 52.05312807 | L63: 14.82234004 | M63: 1.863159762 | N63: 2.577137565 | O63: 2.577137565 | P63: 1
A64: 0.2 | B64: 2.013094452 | C64: 2.788535261 | D64: 2.788535261 | E64: 1 | F64: -6.810754696 | G64: -4.188140928 | H64: -5.370833744 | I64: 9.093768568 | J64: 11.61276591 | K64: 51.93608046 | L64: 14.74967657 | M64: 1.908628605 | N64: 2.635201395 | O64: 2.635201395 | P64: 1
A65: 0.205 | B65: 2.063421814 | C65: 2.853226143 | D65: 2.853226143 | E65: 1 | F65: -6.744141722 | G65: -4.158034499 | H65: -5.309820776 | I65: 9.072978395 | J65: 11.5372168 | K65: 51.81814862 | L65: 14.6774081 | M65: 1.953993497 | N65: 2.692887479 | O65: 2.692887479 | P65: 1
A66: 0.21 | B66: 2.113749175 | C66: 2.917672024 | D66: 2.917672024 | E66: 1 | F66: -6.678215564 | G66: -4.128202004 | H66: -5.24942962 | I66: 9.052337385 | J66: 11.46196966 | K66: 51.69932517 | L66: 14.60553185 | M66: 1.999255183 | N66: 2.750197327 | O66: 2.750197327 | P66: 1
A67: 0.215 | B67: 2.164076536 | C67: 2.981872906 | D67: 2.981872906 | E67: 1 | F67: -6.612968376 | G67: -4.098640261 | H67: -5.189653047 | I67: 9.031844184 | J67: 11.38702139 | K67: 51.57960265 | L67: 14.53404505 | M67: 2.044414404 | N67: 2.807132434 | O67: 2.807132434 | P67: 1
A68: 0.22 | B68: 2.214403898 | C68: 3.045828787 | D68: 3.045828787 | E68: 1 | F68: -6.54839243 | G68: -4.069346138 | H68: -5.130483938 | I68: 9.011497453 | J68: 11.31236897 | K68: 51.45897351 | L68: 14.462945 | M68: 2.089471892 | N68: 2.863694279 | O68: 2.863694279 | P68: 1
A69: 0.225 | B69: 2.264731259 | C69: 3.109539669 | D69: 3.109539669 | E69: 1 | F69: -6.48448012 | G69: -4.040316553 | H69: -5.071915277 | I69: 8.991295871 | J69: 11.23800939 | K69: 51.33743015 | L69: 14.39222903 | M69: 2.134428371 | N69: 2.919884326 | O69: 2.919884326 | P69: 1
A70: 0.23 | B70: 2.31505862 | C70: 3.17300555 | D70: 3.17300555 | E70: 1 | F70: -6.421223954 | G70: -4.011548474 | H70: -5.013940158 | I70: 8.971238128 | J70: 11.16393969 | K70: 51.21496492 | L70: 14.32189453 | M70: 2.179284562 | N70: 2.975704024 | O70: 2.975704024 | P70: 1
A71: 0.235 | B71: 2.365385982 | C71: 3.236226432 | D71: 3.236226432 | E71: 1 | F71: -6.358616554 | G71: -3.983038916 | H71: -4.956551773 | I71: 8.951322934 | J71: 11.09015693 | K71: 51.09157008 | L71: 14.25193892 | M71: 2.224041176 | N71: 3.031154809 | O71: 3.031154809 | P71: 1
A72: 0.24 | B72: 2.415713343 | C72: 3.299202313 | D72: 3.299202313 | E72: 1 | F72: -6.296650656 | G72: -3.95478494 | H72: -4.899743418 | I72: 8.931549009 | J72: 11.01665822 | K72: 50.96723782 | L72: 14.18235968 | M72: 2.268698921 | N72: 3.0862381 | O72: 3.0862381 | P72: 1
A73: 0.245 | B73: 2.466040704 | C73: 3.361933195 | D73: 3.361933195 | E73: 1 | F73: -6.235319105 | G73: -3.926783656 | H73: -4.843508487 | I73: 8.911915091 | J73: 10.94344067 | K73: 50.84196027 | L73: 14.1131543 | M73: 2.313258497 | N73: 3.140955303 | O73: 3.140955303 | P73: 1
A74: 0.25 | B74: 2.516368066 | C74: 3.424419076 | D74: 3.424419076 | E74: 1 | F74: -6.174614856 | G74: -3.899032217 | H74: -4.787840472 | I74: 8.89241993 | J74: 10.87050147 | K74: 50.71572948 | L74: 14.04432036 | M74: 2.357720596 | N74: 3.195307811 | O74: 3.195307811 | P74: 1
A75: 0.255 | B75: 2.566695427 | C75: 3.486659958 | D75: 3.486659958 | E75: 1 | F75: -6.114530968 | G75: -3.871527823 | H75: -4.732732961 | I75: 8.873062291 | J75: 10.79783781 | K75: 50.58853745 | L75: 13.97585546 | M75: 2.402085908 | N75: 3.249297 | O75: 3.249297 | P75: 1
A76: 0.26 | B76: 2.617022788 | C76: 3.54865584 | D76: 3.54865584 | E76: 1 | F76: -6.055060608 | G76: -3.844267717 | H76: -4.678179633 | I76: 8.853840952 | J76: 10.72544691 | K76: 50.46037609 | L76: 13.90775722 | M76: 2.446355113 | N76: 3.302924234 | O76: 3.302924234 | P76: 1
A77: 0.265 | B77: 2.66735015 | C77: 3.610406721 | D77: 3.610406721 | E77: 1 | F77: -5.996197041 | G77: -3.817249184 | H77: -4.624174264 | I77: 8.834754706 | J77: 10.65332604 | K77: 50.33123726 | L77: 13.84002335 | M77: 2.490528886 | N77: 3.356190864 | O77: 3.356190864 | P77: 1
A78: 0.27 | B78: 2.717677511 | C78: 3.671912603 | D78: 3.671912603 | E78: 1 | F78: -5.937933638 | G78: -3.790469555 | H78: -4.570710715 | I78: 8.815802358 | J78: 10.58147248 | K78: 50.20111272 | L78: 13.77265157 | M78: 2.534607898 | N78: 3.409098227 | O78: 3.409098227 | P78: 1
A79: 0.275 | B79: 2.768004872 | C79: 3.733173484 | D79: 3.733173484 | E79: 1 | F79: -5.880263866 | G79: -3.763926199 | H79: -4.517782941 | I79: 8.796982727 | J79: 10.50988357 | K79: 50.06999419 | L79: 13.70563963 | M79: 2.578592812 | N79: 3.461647645 | O79: 3.461647645 | P79: 1
A80: 0.28 | B80: 2.818332233 | C80: 3.794189366 | D80: 3.794189366 | E80: 1 | F80: -5.82318129 | G80: -3.737616529 | H80: -4.465384981 | I80: 8.778294645 | J80: 10.43855664 | K80: 49.93787331 | L80: 13.63898536 | M80: 2.622484285 | N80: 3.513840428 | O80: 3.513840428 | P80: 1
A81: 0.285 | B81: 2.868659595 | C81: 3.854960247 | D81: 3.854960247 | E81: 1 | F81: -5.766679573 | G81: -3.711537997 | H81: -4.413510959 | I81: 8.759736955 | J81: 10.36748909 | K81: 49.80474164 | L81: 13.5726866 | M81: 2.66628297 | N81: 3.565677873 | O81: 3.565677873 | P81: 1
A82: 0.29 | B82: 2.918986956 | C82: 3.915486129 | D82: 3.915486129 | E82: 1 | F82: -5.710752468 | G82: -3.685688096 | H82: -4.362155088 | I82: 8.741308514 | J82: 10.29667831 | K82: 49.67059068 | L82: 13.50674124 | M82: 2.709989512 | N82: 3.617161265 | O82: 3.617161265 | P82: 1
A83: 0.295 | B83: 2.969314317 | C83: 3.97576701 | D83: 3.97576701 | E83: 1 | F83: -5.655393824 | G83: -3.660064357 | H83: -4.311311658 | I83: 8.723008192 | J83: 10.22612176 | K83: 49.53541186 | L83: 13.4411472 | M83: 2.753604553 | N83: 3.668291874 | O83: 3.668291874 | P83: 1
A84: 0.3 | B84: 3.019641679 | C84: 4.035802892 | D84: 4.035802892 | E84: 1 | F84: -5.600597581 | G84: -3.634664352 | H84: -4.260975043 | I84: 8.704834871 | J84: 10.15581688 | K84: 49.39919654 | L84: 13.37590246 | M84: 2.797128727 | N84: 3.719070958 | O84: 3.719070958 | P84: 1
A85: 0.305 | B85: 3.06996904 | C85: 4.095593773 | D85: 4.095593773 | E85: 1 | F85: -5.546357766 | G85: -3.609485687 | H85: -4.211139696 | I85: 8.686787442 | J85: 10.08576118 | K85: 49.26193599 | L85: 13.31100502 | M85: 2.840562665 | N85: 3.769499764 | O85: 3.769499764 | P85: 1
A86: 0.31 | B86: 3.120296401 | C86: 4.155139655 | D86: 4.155139655 | E86: 1 | F86: -5.492668496 | G86: -3.584526009 | H86: -4.16180015 | I86: 8.668864812 | J86: 10.01595218 | K86: 49.12362144 | L86: 13.24645293 | M86: 2.883906989 | N86: 3.819579525 | O86: 3.819579525 | P86: 1
A87: 0.315 | B87: 3.170623763 | C87: 4.214440536 | D87: 4.214440536 | E87: 1 | F87: -5.439523972 | G87: -3.559783001 | H87: -4.112951013 | I87: 8.651065897 | J87: 9.946387427 | K87: 48.98424402 | L87: 13.18224427 | M87: 2.927162318 | N87: 3.869311462 | O87: 3.869311462 | P87: 1
A88: 0.32 | B88: =IF(E88=0,B87,$B$19*A88) -> 3.220951124 | C88: 4.273496418 | D88: 4.273496418 | E88: 1 | F88: -5.386918484 | G88: -3.535254379 | H88: -4.064586969 | I88: 8.633389625 | J88: 9.877064492 | K88: 48.84379481 | L88: 13.11837716 | M88: 2.970329266 | N88: 3.918696784 | O88: 3.918696784 | P88: 1
A89: 0.325 | B89: 3.271278485 | C89: =$B$20*A89+0.5*$B$16*A89^2+$B$17 -> 4.332307299 | D89: =IF(E89=1,C89,$B$18) -> 4.332307299 | E89: =IF(AND(C90-C89<0,C89<$B$18),0,1) -> 1 | F89: =-$E$13*L88^2 -> -5.334846401 | G89: -3.5109379 | H89: -4.016702775 | I89: 8.615834936 | J89: =J88+(H89+$B$16)*$A$22 -> 9.807980978 | K89: 48.70226481 | L89: 13.05484977 | M89: 3.013408441 | N89: 3.967736689 | O89: =IF(P89=1,N89,$B$18) -> 3.967736689 | P89: =IF(AND(N90-N89<0,N89<$B$18),0,1) -> 1
A90: =A89+$A$22 -> 0.33 | B90: 3.321605847 | C90: 4.390873181 | D90: 4.390873181 | E90: 1 | F90: -5.283302178 | G90: =$F90*COS(PI()/180*$K89) -> -3.486831352 | H90: =$F90*SIN(PI()/180*$K89) -> -3.969293265 | I90: =I89+G90*$A$22 -> 8.598400779 | J90: 9.739134512 | K90: =180/PI()*ATAN(J90/I90) -> 48.55964495 | L90: =SQRT(I90^2+J90^2) -> 12.99166029 | M90: =IF(P90=0,M89,M89+I90*$A$22) -> 3.056400445 | N90: =N89+J90*$A$22 -> 4.016432362 | O90: 4.016432362 | P90: 1
A91: 0.335 | B91: 3.371933208 | C91: 4.449194063 | D91: 4.449194063 | E91: 1 | F91: -5.232280347 | G91: -3.46293256 | H91: -3.922353339 | I91: 8.581086116 | J91: 9.670522745 | K91: 48.4159261 | L91: 12.92880695 | M91: 3.099305876 | N91: 4.064784976 | O91: 4.064784976 | P91: 1
A92: 0.34 | B92: 3.422260569 | C92: 4.507269944 | D92: 4.507269944 | E92: 1 | F92: -5.181775522 | G92: -3.43923938 | H92: -3.875877971 | I92: 8.563889919 | J92: 9.602143355 | K92: 48.27109904 | L92: 12.86628803 | M92: 3.142125325 | N92: 4.112795692 | O92: 4.112795692 | P92: 1
A93: 0.345 | B93: 3.472587931 | C93: 4.565100826 | D93: 4.565100826 | E93: 1 | F93: -5.131782394 | G93: -3.415749704 | H93: -3.829862204 | I93: 8.546811171 | J93: 9.533994044 | K93: 48.12515449 | L93: 12.80410183 | M93: 3.184859381 | N93: 4.160465663 | O93: 4.160465663 | P93: 1
A94: 0.35 | B94: 3.522915292 | C94: 4.622686707 | D94: 4.622686707 | E94: 1 | F94: -5.082295732 | G94: -3.392461457 | H94: -3.784301148 | I94: 8.529848863 | J94: 9.466072538 | K94: 47.97808311 | L94: 12.7422467 | M94: 3.227508625 | N94: 4.207796025 | O94: 4.207796025 | P94: 1
A95: 0.355 | B95: 3.573242653 | C95: 4.680027589 | D95: 4.680027589 | E95: 1 | F95: -5.033310379 | G95: -3.369372594 | H95: -3.739189978 | I95: 8.513002 | J95: 9.398376588 | K95: 47.82987548 | L95: 12.68072102 | M95: 3.270073635 | N95: 4.254787908 | O95: 4.254787908 | P95: 1
A96: 0.36 | B96: 3.623570014 | C96: 4.73712347 | D96: 4.73712347 | E96: 1 | F96: -4.984821252 | G96: -3.346481105 | H96: -3.694523938 | I96: 8.496269595 | J96: 9.330903969 | K96: 47.6805221 | L96: 12.6195232 | M96: 3.312554983 | N96: 4.301442428 | O96: 4.301442428 | P96: 1
A97: 0.365 | B97: 3.673897376 | C97: 4.793974352 | D97: 4.793974352 | E97: 1 | F97: -4.936823343 | G97: -3.32378501 | H97: -3.650298334 | I97: 8.47965067 | J97: 9.263652477 | K97: 47.53001343 | L97: 12.55865171 | M97: 3.354953237 | N97: 4.347760691 | O97: 4.347760691 | P97: 1
A98: 0.37 | B98: 3.724224737 | C98: 4.850580233 | D98: 4.850580233 | E98: 1 | F98: -4.889311714 | G98: -3.30128236 | H98: -3.606508535 | I98: 8.463144258 | J98: 9.196619934 | K98: 47.37833983 | L98: 12.49810501 | M98: 3.397268958 | N98: 4.39374379 | O98: 4.39374379 | P98: 1
A99: 0.375 | B99: 3.774552098 | C99: 4.906941115 | D99: 4.906941115 | E99: 1 | F99: -4.842281498 | G99: -3.278971236 | H99: -3.563149973 | I99: 8.446749402 | J99: 9.129804185 | K99: 47.22549161 | L99: 12.43788165 | M99: 3.439502705 | N99: 4.439392811 | O99: 4.439392811 | P99: 1
A100: 0.38 | B100: 3.82487946 | C100: 4.963056996 | D100: 4.963056996 | E100: 1 | F100: -4.795727897 | G100: -3.256849751 | H100: -3.520218142 | I100: 8.430465153 | J100: 9.063203094 | K100: 47.07145901 | L100: 12.37798017 | M100: 3.481655031 | N100: 4.484708827 | O100: 4.484708827 | P100: 1
A101: 0.385 | B101: 3.875206821 | C101: 5.018927878 | D101: 5.018927878 | E101: 1 | F101: -4.749646184 | G101: -3.234916044 | H101: -3.477708593 | I101: 8.414290573 | J101: 8.996814551 | K101: 46.9162322 | L101: 12.31839916 | M101: 3.523726484 | N101: 4.529692899 | O101: 4.529692899 | P101: 1
A102: 0.39 | B102: 3.925534182 | C102: 5.074553759 | D102: 5.074553759 | E102: 1 | F102: -4.704031695 | G102: -3.213168288 | H102: -3.435616938 | I102: 8.398224732 | J102: 8.930636466 | K102: 46.75980129 | L102: 12.25913726 | M102: 3.565717607 | N102: 4.574346082 | O102: 4.574346082 | P102: 1
A103: 0.395 | B103: 3.975861544 | C103: 5.129934641 | D103: 5.129934641 | E103: 1 | F103: -4.658879836 | G103: -3.191604681 | H103: -3.393938846 | I103: 8.382266708 | J103: 8.864666772 | K103: 46.60215631 | L103: 12.20019312 | M103: 3.607628941 | N103: 4.618669416 | O103: 4.618669416 | P103: 1
A104: 0.4 | B104: 4.026188905 | C104: 5.185070522 | D104: 5.185070522 | E104: 1 | F104: -4.614186076 | G104: -3.170223451 | H104: -3.352670043 | I104: 8.366415591 | J104: 8.798903422 | K104: 46.44328724 | L104: 12.14156544 | M104: 3.649461019 | N104: 4.662663933 | O104: 4.662663933 | P104: 1
A105: 0.405 | B105: 4.076516266 | C105: 5.239961404 | D105: 5.239961404 | E105: 1 | F105: -4.569945949 | G105: -3.149022853 | H105: -3.311806312 | I105: 8.350670477 | J105: 8.73334439 | K105: 46.28318399 | L105: 12.08325294 | M105: 3.691214371 | N105: 4.706330655 | O105: 4.706330655 | P105: 1
A106: 0.41 | B106: 4.126843628 | C106: 5.294607285 | D106: 5.294607285 | E106: 1 | F106: -4.526155051 | G106: -3.128001172 | H106: -3.271343488 | I106: 8.335030471 | J106: 8.667987673 | K106: 46.12183639 | L106: 12.02525439 | M106: 3.732889523 | N106: 4.749670593 | O106: 4.749670593 | P106: 1
A107: 0.415 | B107: 4.177170989 | C107: 5.349008167 | D107: 5.349008167 | E107: 1 | F107: -4.482809041 | G107: -3.107156716 | H107: -3.231277462 | I107: 8.319494687 | J107: 8.602831285 | K107: 45.95923424 | L107: 11.96756859 | M107: 3.774486997 | N107: 4.792684749 | O107: 4.792684749 | P107: 1
A108: 0.42 | B108: 4.22749835 | C108: 5.403164049 | D108: 5.403164049 | E108: 1 | F108: -4.439903637 | G108: -3.086487823 | H108: -3.191604178 | I108: 8.304062248 | J108: 8.537873265 | K108: 45.79536725 | L108: 11.91019436 | M108: 3.816007308 | N108: 4.835374116 | O108: 4.835374116 | P108: 1
A109: 0.425 | B109: 4.277825712 | C109: 5.45707493 | D109: 5.45707493 | E109: 1 | F109: -4.397434621 | G109: -3.065992856 | H109: -3.15231963 | I109: 8.288732284 | J109: 8.473111666 | K109: 45.63022508 | L109: 11.85313056 | M109: 3.85745097 | N109: 4.877739674 | O109: 4.877739674 | P109: 1
A110: 0.43 | B110: 4.328153073 | C110: 5.510740812 | D110: 5.510740812 | E110: 1 | F110: -4.35539783 | G110: -3.045670205 | H110: -3.113419865 | I110: 8.273503933 | J110: 8.408544567 | K110: 45.46379732 | L110: 11.7963761 | M110: 3.898818489 | N110: 4.919782397 | O110: 4.919782397 | P110: 1
A111: 0.435 | B111: 4.378480434 | C111: 5.564161693 | D111: 5.564161693 | E111: 1 | F111: -4.313789161 | G111: -3.025518285 | H111: -3.074900979 | I111: 8.258376341 | J111: 8.344170062 | K111: 45.29607352 | L111: 11.73992989 | M111: 3.940110371 | N111: 4.961503247 | O111: 4.961503247 | P111: 1
A112: 0.44 | B112: 4.428807795 | C112: 5.617337575 | D112: 5.617337575 | E112: 1 | F112: -4.272604568 | G112: -3.005535537 | H112: -3.036759117 | I112: 8.243348664 | J112: 8.279986267 | K112: 45.12704315 | L112: 11.6837909 | M112: 3.981327114 | N112: 5.002903179 | O112: 5.002903179 | P112: 1
A113: 0.445 | B113: 4.479135157 | C113: 5.670268456 | D113: 5.670268456 | E113: 1 | F113: -4.231840063 | G113: -2.985720425 | H113: -2.998990474 | I113: 8.228420061 | J113: 8.215991314 | K113: 44.95669565 | L113: 11.62795812 | M113: 4.022469215 | N113: 5.043983135 | O113: 5.043983135 | P113: 1
A114: 0.45 | B114: 4.529462518 | C114: 5.722954338 | D114: 5.722954338 | E114: 1 | F114: -4.19149171 | G114: -2.966071439 | H114: -2.96159129 | I114: 8.213589704 | J114: 8.152183358 | K114: 44.78502036 | L114: 11.57243057 | M114: 4.063537163 | N114: 5.084744052 | O114: 5.084744052 | P114: 1
A115: 0.455 | B115: 4.579789879 | C115: 5.775395219 | D115: 5.775395219 | E115: 1 | F115: -4.151555629 | G115: -2.946587094 | H115: -2.924557853 | I115: 8.198856769 | J115: 8.088560569 | K115: 44.61200662 | L115: 11.51720732 | M115: 4.104531447 | N115: 5.125186855 | O115: 5.125186855 | P115: 1
A116: 0.46 | B116: 4.630117241 | C116: 5.827591101 | D116: 5.827591101 | E116: 1 | F116: -4.112027996 | G116: -2.927265928 | H116: -2.887886498 | I116: 8.184220439 | J116: 8.025121136 | K116: 44.43764367 | L116: 11.46228744 | M116: 4.145452549 | N116: 5.16531246 | O116: 5.16531246 | P116: 1
A117: 0.465 | B117: 4.680444602 | C117: 5.879541982 | D117: 5.879541982 | E117: 1 | F117: -4.072905037 | G117: -2.908106503 | H117: -2.851573602 | I117: 8.169679907 | J117: 7.961863268 | K117: 44.26192073 | L117: 11.40767007 | M117: 4.186300949 | N117: 5.205121777 | O117: 5.205121777 | P117: 1
A118: 0.47 | B118: 4.730771963 | C118: 5.931247864 | D118: 5.931247864 | E118: 1 | F118: -4.034183031 | G118: -2.889107402 | H118: -2.815615589 | I118: 8.15523437 | J118: 7.89878519 | K118: 44.08482695 | L118: 11.35335435 | M118: 4.22707712 | N118: 5.244615703 | O118: 5.244615703 | P118: 1
A119: 0.475 | B119: 4.781099325 | C119: 5.982708745 | D119: 5.982708745 | E119: 1 | F119: -3.995858308 | G119: -2.870267235 | H119: -2.780008924 | I119: 8.140883033 | J119: 7.835885145 | K119: 43.90635145 | L119: 11.29933948 | M119: 4.267781536 | N119: 5.283795128 | O119: 5.283795128 | P119: 1
A120: 0.48 | B120: 4.831426686 | C120: 6.033924627 | D120: 6.033924627 | E120: 1 | F120: -3.95792725 | G120: -2.851584632 | H120: -2.744750117 | I120: 8.12662511 | J120: 7.773161395 | K120: 43.72648328 | L120: 11.24562465 | M120: 4.308414661 | N120: 5.322660935 | O120: 5.322660935 | P120: 1
A121: 0.485 | B121: 4.881754047 | C121: 6.084895508 | D121: 6.084895508 | E121: 1 | F121: -3.920386286 | G121: -2.833058245 | H121: -2.709835717 | I121: 8.112459819 | J121: 7.710612216 | K121: 43.54521148 | L121: 11.19220912 | M121: 4.34897696 | N121: 5.361213996 | O121: 5.361213996 | P121: 1
A122: 0.49 | B122: 4.932081409 | C122: 6.13562139 | D122: 6.13562139 | E122: 1 | F122: -3.883231897 | G122: -2.814686751 | H122: -2.675262316 | I122: 8.098386385 | J122: 7.648235905 | K122: 43.362525 | L122: 11.13909218 | M122: 4.389468892 | N122: 5.399455176 | O122: 5.399455176 | P122: 1
A123: 0.495 | B123: 4.98240877 | C123: 6.186102271 | D123: 6.186102271 | E123: 1 | F123: -3.84646061 | G123: -2.796468845 | H123: -2.641026546 | I123: 8.084404041 | J123: 7.586030772 | K123: 43.1784128 | L123: 11.08627311 | M123: 4.429890912 | N123: 5.43738533 | O123: 5.43738533 | P123: 1
A124: 0.5 | B124: 5.032736131 | C124: 6.236338153 | D124: 6.236338153 | E124: 1 | F124: -3.810068999 | G124: -2.778403246 | H124: -2.607125079 | I124: 8.070512025 | J124: 7.523995147 | K124: 42.99286376 | L124: 11.03375128 | M124: 4.470243473 | N124: 5.475005306 | O124: 5.475005306 | P124: 1
A125: 0.505 | B125: 5.083063493 | C125: 6.286329035 | D125: 6.286329035 | E125: 1 | F125: -3.774053687 | G125: -2.760488694 | H125: -2.573554623 | I125: 8.056709581 | J125: 7.462127373 | K125: 42.80586673 | L125: 10.98152604 | M125: 4.51052702 | N125: 5.512315942 | O125: 5.512315942 | P125: 1
A126: 0.51 | B126: 5.133390854 | C126: 6.336074916 | D126: 6.336074916 | E126: 1 | F126: -3.738411341 | G126: -2.742723949 | H126: -2.540311929 | I126: 8.042995962 | J126: 7.400425814 | K126: 42.61741056 | L126: 10.9295968 | M126: 4.550742 | N126: 5.549318072 | O126: 5.549318072 | P126: 1
A127: 0.515 | B127: 5.183718215 | C127: 6.385575798 | D127: 6.385575798 | E127: 1 | F127: -3.703138674 | G127: -2.725107791 | H127: -2.50739378 | I127: 8.029370423 | J127: 7.338888845 | K127: 42.42748403 | L127: 10.87796299 | M127: 4.590888852 | N127: 5.586012516 | O127: 5.586012516 | P127: 1
A128: 0.52 | B128: 5.234045576 | C128: 6.434831679 | D128: 6.434831679 | E128: 1 | F128: -3.668232445 | G128: -2.707639024 | H128: -2.474796999 | I128: 8.015832228 | J128: 7.27751486 | K128: 42.2360759 | L128: 10.82662407 | M128: 4.630968014 | N128: 5.62240009 | O128: 5.62240009 | P128: 1
A129: 0.525 | B129: 5.284372938 | C129: 6.483842561 | D129: 6.483842561 | E129: 1 | F129: -3.633689454 | G129: -2.690316467 | H129: -2.442518445 | I129: 8.002380645 | J129: 7.216302268 | K129: 42.04317491 | L129: 10.77557954 | M129: 4.670979917 | N129: 5.658481601 | O129: 5.658481601 | P129: 1
A130: 0.53 | B130: 5.334700299 | C130: 6.532608442 | D130: 6.532608442 | E130: 1 | F130: -3.599506547 | G130: -2.673138964 | H130: -2.410555011 | I130: 7.98901495 | J130: 7.155249493 | K130: 41.84876977 | L130: 10.72482891 | M130: 4.710924991 | N130: 5.694257849 | O130: 5.694257849 | P130: 1
A131: 0.535 | B131: 5.38502766 | C131: 6.581129324 | D131: 6.581129324 | E131: 1 | F131: -3.565680611 | G131: -2.656105374 | H131: -2.378903625 | I131: 7.975734424 | J131: 7.094354975 | K131: 41.65284917 | L131: 10.67437174 | M131: 4.750803664 | N131: 5.729729624 | O131: 5.729729624 | P131: 1
A132: 0.54 | B132: 5.435355022 | C132: 6.629405205 | D132: 6.629405205 | E132: 1 | F132: -3.532208575 | G132: -2.639214579 | H132: -2.34756125 | I132: 7.962538351 | J132: 7.033617168 | K132: 41.45540179 | L132: 10.62420762 | M132: 4.790616355 | N132: 5.76489771 | O132: 5.76489771 | P132: 1
A133: 0.545 | B133: 5.485682383 | C133: 6.677436087 | D133: 6.677436087 | E133: 1 | F133: -3.499087411 | G133: -2.622465478 | H133: -2.316524882 | I133: 7.949426023 | J133: 6.973034544 | K133: 41.25641627 | L133: 10.57433614 | M133: 4.830363485 | N133: 5.799762882 | O133: 5.799762882 | P133: 1
A134: 0.55 | B134: 5.536009744 | C134: 6.725221968 | D134: 6.725221968 | E134: 1 | F134: -3.46631413 | G134: -2.60585699 | H134: -2.285791547 | I134: 7.936396738 | J134: 6.912605586 | K134: 41.05588127 | L134: 10.52475697 | M134: 4.870045469 | N134: 5.83432591 | O134: 5.83432591 | P134: 1
A135: 0.555 | B135: 5.586337106 | C135: 6.77276285 | D135: 6.77276285 | E135: 1 | F135: -3.433885785 | G135: -2.589388052 | H135: -2.255358308 | I135: 7.923449798 | J135: 6.852328795 | K135: 40.85378542 | L135: 10.47546976 | M135: 4.909662718 | N135: 5.868587554 | O135: 5.868587554 | P135: 1
A136: 0.56 | B136: 5.636664467 | C136: 6.820058731 | D136: 6.820058731 | E136: 1 | F136: -3.401799465 | G136: -2.57305762 | H136: -2.225222254 | I136: 7.91058451 | J136: 6.792202683 | K136: 40.65011735 | L136: 10.42647422 | M136: 4.949215641 | N136: 5.902548568 | O136: 5.902548568 | P136: 1
A137: 0.565 | B137: 5.686991828 | C137: 6.867109613 | D137: 6.867109613 | E137: 1 | F137: -3.370052302 | G137: -2.556864668 | H137: -2.195380511 | I137: 7.897800187 | J137: 6.732225781 | K137: 40.44486568 | L137: 10.37777008 | M137: 4.988704642 | N137: 5.936209697 | O137: 5.936209697 | P137: 1
A138: 0.57 | B138: 5.73731919 | C138: 6.913915494 | D138: 6.913915494 | E138: 1 | F138: -3.338641464 | G138: -2.540808188 | H138: -2.165830229 | I138: 7.885096146 | J138: 6.67239663 | K138: 40.23801904 | L138: 10.3293571 | M138: 5.028130122 | N138: 5.96957168 | O138: 5.96957168 | P138: 1
A139: 0.575 | B139: 5.787646551 | C139: 6.960476376 | D139: 6.960476376 | E139: 1 | F139: -3.307564158 | G139: -2.524887189 | H139: -2.136568592 | I139: 7.87247171 | J139: 6.612713787 | K139: 40.02956607 | L139: 10.28123506 | M139: 5.067492481 | N139: 6.002635249 | O139: 6.002635249 | P139: 1
A140: 0.58 | B140: 5.837973912 | C140: 7.006792257 | D140: 7.006792257 | E140: 1 | F140: -3.276817628 | G140: -2.509100698 | H140: -2.10759281 | I140: 7.859926206 | J140: 6.553175823 | K140: 39.81949542 | L140: 10.2334038 | M140: 5.106792112 | N140: 6.035401128 | O140: 6.035401128 | P140: 1
A141: 0.585 | B141: 5.888301274 | C141: 7.052863139 | D141: 7.052863139 | E141: 1 | F141: -3.246399153 | G141: -2.49344776 | H141: -2.078900125 | I141: 7.847458967 | J141: 6.493781322 | K141: 39.60779573 | L141: 10.18586315 | M141: 5.146029407 | N141: 6.067870034 | O141: 6.067870034 | P141: 1
A142: 0.59 | B142: 5.938628635 | C142: 7.098689021 | D142: 7.098689021 | E142: 1 | F142: -3.216306051 | G142: -2.477927437 | H142: -2.050487804 | I142: 7.83506933 | J142: 6.434528883 | K142: 39.39445568 | L142: 10.13861299 | M142: 5.185204753 | N142: 6.100042679 | O142: 6.100042679 | P142: 1
A143: 0.595 | B143: 5.988955996 | C143: 7.144269902 | D143: 7.144269902 | E143: 1 | F143: -3.186535674 | G143: -2.462538806 | H143: -2.022353142 | I143: 7.822756636 | J143: 6.375417117 | K143: 39.17946397 | L143: 10.09165322 | M143: 5.224318537 | N143: 6.131919764 | O143: 6.131919764 | P143: 1
A144: 0.6 | B144: 6.039283357 | C144: 7.189605784 | D144: 7.189605784 | E144: 1 | F144: -3.157085409 | G144: -2.447280964 | H144: -1.99449346 | I144: 7.810520231 | J144: 6.31644465 | K144: 38.96280932 | L144: 10.04498379 | M144: 5.263371138 | N144: 6.163501988 | O144: 6.163501988 | P144: 1
A145: 0.605 | B145: 6.089610719 | C145: 7.234696665 | D145: 7.234696665 | E145: 1 | F145: -3.127952678 | G145: -2.432153022 | H145: -1.966906107 | I145: 7.798359466 | J145: 6.257610119 | K145: 38.74448049 | L145: 9.998604641 | M145: 5.302362935 | N145: 6.194790038 | O145: 6.194790038 | P145: 1
A146: 0.61 | B146: 6.13993808 | C146: 7.279542547 | D146: 7.279542547 | E146: 1 | F146: -3.099134938 | G146: -2.417154108 | H146: -1.939588457 | I146: 7.786273696 | J146: 6.198912177 | K146: 38.52446627 | L146: 9.952515775 | M146: 5.341294304 | N146: 6.225784599 | O146: 6.225784599 | P146: 1
A147: 0.615 | B147: 6.190265441 | C147: 7.324143428 | D147: 7.324143428 | E147: 1 | F147: -3.070629678 | G147: -2.402283365 | H147: -1.912537908 | I147: 7.774262279 | J147: 6.140349488 | K147: 38.30275548 | L147: 9.906717207 | M147: 5.380165615 | N147: 6.256486346 | O147: 6.256486346 | P147: 1
A148: 0.62 | B148: 6.240592803 | C148: 7.36849931 | D148: 7.36849931 | E148: 1 | F148: -3.04243442 | G148: -2.387539955 | H148: -1.885751884 | I148: 7.762324579 | J148: 6.081920728 | K148: 38.07933701 | L148: 9.861208984 | M148: 5.418977238 | N148: 6.28689595 | O148: 6.28689595 | P148: 1
A149: 0.625 | B149: 6.290920164 | C149: 7.412610191 | D149: 7.412610191 | E149: 1 | F149: -3.014546721 | G149: -2.372923051 | H149: -1.859227831 | I149: 7.750459964 | J149: 6.023624589 | K149: 37.85419979 | L149: 9.81599118 | M149: 5.457729538 | N149: 6.317014073 | O149: 6.317014073 | P149: 1
A150: 0.63 | B150: 6.341247525 | C150: 7.456476073 | D150: 7.456476073 | E150: 1 | F150: -2.986964168 | G150: -2.358431846 | H150: -1.832963221 | I150: 7.738667805 | J150: 5.965459773 | K150: 37.6273328 | L150: 9.771063898 | M150: 5.496422877 | N150: 6.346841372 | O150: 6.346841372 | P150: 1
A151: 0.635 | B151: 6.391574887 | C151: 7.500096954 | D151: 7.500096954 | E151: 1 | F151: -2.959684381 | G151: -2.344065546 | H151: -1.806955547 | I151: 7.726947477 | J151: 5.907424995 | K151: 37.39872509 | L151: 9.726427267 | M151: 5.535057614 | N151: 6.376378497 | O151: 6.376378497 | P151: 1
A152: 0.64 | B152: =IF(E152=0,B151,$B$19*A152) -> 6.441902248 | C152: 7.543472836 | D152: 7.543472836 | E152: 1 | F152: -2.932705009 | G152: -2.329823372 | H152: -1.781202326 | I152: 7.71529836 | J152: 5.849518984 | K152: 37.16836578 | L152: 9.682081446 | M152: 5.573634106 | N152: 6.405626092 | O152: 6.405626092 | P152: 1
A153: 0.645 | B153: 6.492229609 | C153: =$B$20*A153+0.5*$B$16*A153^2+$B$17 -> 7.586603717 | D153: =IF(E153=1,C153,$B$18) -> 7.586603717 | E153: =IF(AND(C154-C153<0,C153<$B$18),0,1) -> 1 | F153: =-$E$13*L152^2 -> -2.906023735 | G153: -2.31570456 | H153: -1.755701096 | I153: 7.703719837 | J153: =J152+(H153+$B$16)*$A$22 -> 5.791740478 | K153: 36.93624406 | L153: 9.638026618 | M153: 5.612152705 | N153: 6.434584794 | O153: =IF(P153=1,N153,$B$18) -> 6.434584794 | P153: =IF(AND(N154-N153<0,N153<$B$18),0,1) -> 1
A154: =A153+$A$22 -> 0.65 | B154: 6.542556971 | C154: 7.629489599 | D154: 7.629489599 | E154: 1 | F154: -2.87963827 | G154: =$F154*COS(PI()/180*$K153) -> -2.301708362 | H154: =$F154*SIN(PI()/180*$K153) -> -1.730449416 | I154: =I153+G154*$A$22 -> 7.692211295 | J154: 5.734088231 | K154: =180/PI()*ATAN(J154/I154) -> 36.70234922 | L154: =SQRT(I154^2+J154^2) -> 9.594262997 | M154: =IF(P154=0,M153,M153+I154*$A$22) -> 5.650613762 | N154: =N153+J154*$A$22 -> 6.463255235 | O154: 6.463255235 | P154: 1
A155: 0.655 | B155: 6.592884332 | C155: 7.67213048 | D155: 7.67213048 | E155: 1 | F155: -2.853546356 | G155: -2.287834044 | H155: -1.705444867 | I155: 7.680772125 | J155: 5.676561007 | K155: 36.46667059 | L155: 9.550790821 | M155: 5.689017622 | N155: 6.49163804 | O155: 6.49163804 | P155: 1
A156: 0.66 | B156: 6.643211693 | C156: 7.714526362 | D156: 7.714526362 | E156: 1 | F156: -2.827745764 | G156: -2.274080885 | H156: -1.680685049 | I156: 7.669401721 | J156: 5.619157581 | K156: 36.22919765 | L156: 9.507610356 | M156: 5.727364631 | N156: 6.519733828 | O156: 6.519733828 | P156: 1
A157: 0.665 | B157: 6.693539055 | C157: 7.756677243 | D157: 7.756677243 | E157: 1 | F157: -2.802234295 | G157: -2.26044818 | H157: -1.656167585 | I157: 7.65809948 | J157: 5.561876744 | K157: 35.98991995 | L157: 9.464721895 | M157: 5.765655128 | N157: 6.547543212 | O157: 6.547543212 | P157: 1
A158: 0.67 | B158: 6.743866416 | C158: 7.798583125 | D158: 7.798583125 | E158: 1 | F158: -2.777009777 | G158: -2.246935237 | H158: -1.631890114 | I158: 7.646864804 | J158: 5.504717293 | K158: 35.74882715 | L158: 9.422125758 | M158: 5.803889452 | N158: 6.575066798 | O158: 6.575066798 | P158: 1
A159: 0.675 | B159: 6.794193777 | C159: 7.840244007 | D159: 7.840244007 | E159: 1 | F159: -2.752070068 | G159: -2.233541377 | H159: -1.607850297 | I159: 7.635697097 | J159: 5.447678041 | K159: 35.50590903 | L159: 9.37982229 | M159: 5.842067938 | N159: 6.602305189 | O159: 6.602305189 | P159: 1
A160: 0.68 | B160: 6.844521138 | C160: 7.881659888 | D160: 7.881659888 | E160: 1 | F160: -2.727413052 | G160: -2.220265937 | H160: -1.58404581 | I160: 7.624595767 | J160: 5.390757812 | K160: 35.26115548 | L160: 9.337811864 | M160: 5.880190917 | N160: 6.629258978 | O160: 6.629258978 | P160: 1
A161: 0.685 | B161: 6.8948485 | C161: 7.92283077 | D161: 7.92283077 | E161: 1 | F161: -2.703036643 | G161: -2.207108265 | H161: -1.56047435 | I161: 7.613560226 | J161: 5.333955441 | K161: 35.01455654 | L161: 9.296094877 | M161: 5.918258718 | N161: 6.655928755 | O161: 6.655928755 | P161: 1
A162: 0.69 | B162: 6.945175861 | C162: 7.963756651 | D162: 7.963756651 | E162: 1 | F162: -2.678938779 | G162: -2.194067724 | H162: -1.537133631 | I162: 7.602589887 | J162: 5.277269772 | K162: 34.76610236 | L162: 9.254671752 | M162: 5.956271667 | N162: 6.682315104 | O162: 6.682315104 | P162: 1
A163: 0.695 | B163: 6.995503222 | C163: 8.004437533 | D163: 8.004437533 | E163: 1 | F163: -2.655117427 | G163: -2.18114369 | H163: -1.514021384 | I163: 7.591684169 | J163: 5.220699666 | K163: 34.51578327 | L163: 9.213542941 | M163: 5.994230088 | N163: 6.708418602 | O163: 6.708418602 | P163: 1
A164: 0.7 | B164: 7.045830584 | C164: 8.044873414 | D164: 8.044873414 | E164: 1 | F164: -2.631570579 | G164: -2.16833555 | H164: -1.491135357 | I164: 7.580842491 | J164: 5.164243989 | K164: 34.26358973 | L164: 9.172708916 | M164: 6.0321343 | N164: 6.734239822 | O164: 6.734239822 | P164: 1
A165: 0.705 | B165: 7.096157945 | C165: 8.085064296 | D165: 8.085064296 | E165: 1 | F165: -2.608296254 | G165: -2.155642707 | H165: -1.468473313 | I165: 7.570064278 | J165: 5.107901622 | K165: 34.00951235 | L165: 9.132170177 | M165: 6.069984622 | N165: 6.75977933 | O165: 6.75977933 | P165: 1
A166: 0.71 | B166: 7.146485306 | C166: 8.125010177 | D166: 8.125010177 | E166: 1 | F166: -2.585292497 | G166: -2.143064572 | H166: -1.446033033 | I166: 7.559348955 | J166: 5.051671457 | K166: 33.75354193 | L166: 9.09192725 | M166: 6.107781367 | N166: 6.785037687 | O166: 6.785037687 | P166: 1
A167: 0.715 | B167: 7.196812668 | C167: 8.164711059 | D167: 8.164711059 | E167: 1 | F167: -2.562557375 | G167: -2.130600573 | H167: -1.423812311 | I167: 7.548695952 | J167: 4.995552396 | K167: 33.49566945 | L167: 9.051980684 | M167: 6.145524846 | N167: 6.810015449 | O167: 6.810015449 | P167: 1
A168: 0.72 | B168: 7.247140029 | C168: 8.20416694 | D168: 8.20416694 | E168: 1 | F168: -2.540088984 | G168: -2.118250148 | H168: -1.401808958 | I168: 7.538104701 | J168: 4.939543351 | K168: 33.23588606 | L168: 9.012331052 | M168: 6.18321537 | N168: 6.834713166 | O168: 6.834713166 | P168: 1
A169: 0.725 | B169: 7.29746739 | C169: 8.243377822 | D169: 8.243377822 | E169: 1 | F169: -2.517885441 | G169: -2.106012747 | H169: -1.380020798 | I169: 7.527574637 | J169: 4.883643247 | K169: 32.97418312 | L169: 8.972978952 | M169: 6.220853243 | N169: 6.859131382 | O169: 6.859131382 | P169: 1
A170: 0.73 | B170: 7.347794752 | C170: 8.282343703 | D170: 8.282343703 | E170: 1 | F170: -2.49594489 | G170: -2.093887832 | H170: -1.35844567 | I170: 7.517105198 | J170: 4.827851018 | K170: 32.71055219 | L170: 8.933925006 | M170: 6.258438769 | N170: 6.883270638 | O170: 6.883270638 | P170: 1
A171: 0.735 | B171: 7.398122113 | C171: 8.321064585 | D171: 8.321064585 | E171: 1 | F171: -2.474265496 | G171: -2.081874877 | H171: -1.337081427 | I171: 7.506695824 | J171: 4.772165611 | K171: 32.44498504 | L171: 8.895169858 | M171: 6.295972248 | N171: 6.907131466 | O171: 6.907131466 | P171: 1
A172: 0.74 | B172: 7.448449474 | C172: 8.359540466 | D172: 8.359540466 | E172: 1 | F172: -2.452845451 | G172: -2.069973367 | H172: -1.315925935 | I172: 7.496345957 | J172: 4.716585982 | K172: 32.17747368 | L172: 8.856714178 | M172: 6.333453978 | N172: 6.930714396 | O172: 6.930714396 | P172: 1
A173: 0.745 | B173: 7.498776836 | C173: 8.397771348 | D173: 8.397771348 | E173: 1 | F173: -2.431682967 | G173: -2.058182799 | H173: -1.294977072 | I173: 7.486055043 | J173: 4.661111096 | K173: 31.90801033 | L173: 8.818558655 | M173: 6.370884253 | N173: 6.954019951 | O173: 6.954019951 | P173: 1
A174: 0.75 | B174: 7.549104197 | C174: 8.435757229 | D174: 8.435757229 | E174: 1 | F174: -2.410776279 | G174: -2.04650268 | H174: -1.27423273 | I174: 7.47582253 | J174: 4.605739933 | K174: 31.63658748 | L174: 8.780704005 | M174: 6.408263366 | N174: 6.977048651 | O174: 6.977048651 | P174: 1
A175: 0.755 | B175: 7.599431558 | C175: 8.473498111 | D175: 8.473498111 | E175: 1 | F175: -2.390123647 | G175: -2.03493253 | H175: -1.253690811 | I175: 7.465647867 | J175: 4.550471479 | K175: 31.36319786 | L175: 8.743150962 | M175: 6.445591605 | N175: 6.999801008 | O175: 6.999801008 | P175: 1
A176: 0.76 | B176: 7.649758919 | C176: 8.510993993 | D176: 8.510993993 | E176: 1 | F176: -2.369723351 | G176: -2.023471876 | H176: -1.233349232 | I176: 7.455530507 | J176: 4.495304732 | K176: 31.08783445 | L176: 8.705900286 | M176: 6.482869258 | N176: 7.022277532 | O176: 7.022277532 | P176: 1
A177: 0.765 | B177: 7.700086281 | C177: 8.548244874 | D177: 8.548244874 | E177: 1 | F177: -2.349573693 | G177: -2.01212026 | H177: -1.213205917 | I177: 7.445469906 | J177: 4.440238703 | K177: 30.81049054 | L177: 8.668952755 | M177: 6.520096607 | N177: 7.044478725 | O177: 7.044478725 | P177: 1
A178: 0.77 | B178: 7.750413642 | C178: 8.585250756 | D178: 8.585250756 | E178: 1 | F178: -2.329672998 | G178: -2.000877232 | H178: -1.193258806 | I178: 7.43546552 | J178: 4.385272409 | K178: 30.53115968 | L178: 8.63230917 | M178: 6.557273935 | N178: 7.066405087 | O178: 7.066405087 | P178: 1
A179: 0.775 | B179: 7.800741003 | C179: 8.622011637 | D179: 8.622011637 | E179: 1 | F179: -2.31001961 | G179: -1.989742353 | H179: -1.173505844 | I179: 7.425516808 | J179: 4.33040488 | K179: 30.24983572 | L179: 8.595970352 | M179: 6.594401519 | N179: 7.088057112 | O179: 7.088057112 | P179: 1
A180: 0.78 | B180: 7.851068365 | C180: 8.658527519 | D180: 8.658527519 | E180: 1 | F180: -2.290611895 | G180: -1.978715192 | H180: -1.153944991 | I180: 7.415623232 | J180: 4.275635155 | K180: 29.96651281 | L180: 8.559937143 | M180: 6.631479635 | N180: 7.109435287 | O180: 7.109435287 | P180: 1
A181: 0.785 | B181: 7.901395726 | C181: 8.6947984 | D181: 8.6947984 | E181: 1 | F181: -2.271448241 | G181: -1.967795331 | H181: -1.134574213 | I181: 7.405784256 | J181: 4.220962283 | K181: 29.68118545 | L181: 8.524210406 | M181: 6.668508556 | N181: 7.130540099 | O181: 7.130540099 | P181: 1
A182: 0.79 | B182: 7.951723087 | C182: 8.730824282 | D182: 8.730824282 | E182: 1 | F182: -2.252527054 | G182: -1.95698236 | H182: -1.115391489 | I182: 7.395999344 | J182: 4.166385326 | K182: 29.39384842 | L182: 8.48879102 | M182: 6.705488553 | N182: 7.151372025 | O182: 7.151372025 | P182: 1
A183: 0.795 | B183: 8.002050449 | C183: 8.766605163 | D183: 8.766605163 | E183: 1 | F183: -2.233846762 | G183: -1.946275877 | H183: -1.096394805 | I183: 7.386267964 | J183: 4.111903352 | K183: 29.1044969 | L183: 8.453679886 | M183: 6.742419893 | N183: 7.171931542 | O183: 7.171931542 | P183: 1
A184: 0.8 | B184: 8.05237781 | C184: 8.802141045 | D184: 8.802141045 | E184: 1 | F184: -2.215405812 | G184: -1.935675493 | H184: -1.077582154 | I184: 7.376589587 | J184: 4.057515441 | K184: 28.81312636 | L184: 8.418877924 | M184: 6.779302841 | N184: 7.192219119 | O184: 7.192219119 | P184: 1
A185: 0.805 | B185: 8.102705171 | C185: 8.837431926 | D185: 8.837431926 | E185: 1 | F185: -2.19720267 | G185: -1.925180824 | H185: -1.058951542 | I185: 7.366963683 | J185: 4.003220684 | K185: 28.51973268 | L185: 8.384386069 | M185: 6.816137659 | N185: 7.212235223 | O185: 7.212235223 | P185: 1
A186: 0.81 | B186: 8.153032533 | C186: 8.872477808 | D186: 8.872477808 | E186: 1 | F186: -2.179235822 | G186: -1.914791498 | H186: -1.04050098 | I186: 7.357389725 | J186: 3.949018179 | K186: 28.2243121 | L186: 8.350205276 | M186: 6.852924608 | N186: 7.231980314 | O186: 7.231980314 | P186: 1
A187: 0.815 | B187: 8.203359894 | C187: 8.907278689 | D187: 8.907278689 | E187: 1 | F187: -2.161503773 | G187: -1.90450715 | H187: -1.022228485 | I187: 7.34786719 | J187: 3.894907036 | K187: 27.92686125 | L187: 8.316336517 | M187: 6.889663944 | N187: 7.251454849 | O187: 7.251454849 | P187: 1
A188: 0.82 | B188: 8.253687255 | C188: 8.941834571 | D188: 8.941834571 | E188: 1 | F188: -2.144005045 | G188: -1.894327423 | H188: -1.004132086 | I188: 7.338395553 | J188: 3.840886376 | K188: 27.62737715 | L188: 8.282780779 | M188: 6.926355921 | N188: 7.270659281 | O188: 7.270659281 | P188: 1
A189: 0.825 | B189: 8.304014617 | C189: 8.976145452 | D189: 8.976145452 | E189: 1 | F189: -2.126738181 | G189: -1.884251971 | H189: -0.9862098153 | I189: 7.328974293 | J189: 3.786955327 | K189: 27.32585725 | L189: 8.249539068 | M189: 6.963000793 | N189: 7.289594057 | O189: 7.289594057 | P189: 1
A190: 0.83 | B190: 8.354341978 | C190: 9.010211334 | D190: 9.010211334 | E190: 1 | F190: -2.10970174 | G190: -1.874280452 | H190: -0.9684597134 | I190: 7.31960289 | J190: 3.733113028 | K190: 27.02229941 | L190: 8.216612401 | M190: 6.999598807 | N190: 7.308259623 | O190: 7.308259623 | P190: 1
A191: 0.835 | B191: 8.404669339 | C191: 9.044032216 | D191: 9.044032216 | E191: 1 | F191: -2.0928943 | G191: -1.864412536 | H191: -0.9508798269 | I191: 7.310280828 | J191: 3.679358629 | K191: 26.71670192 | L191: 8.184001815 | M191: 7.036150212 | N191: 7.326656416 | O191: 7.326656416 | P191: 1
A192: 0.84 | B192: 8.4549967 | C192: 9.077608097 | D192: 9.077608097 | E192: 1 | F192: -2.076314457 | G192: -1.854647898 | H192: -0.9334682086 | I192: 7.301007588 | J192: 3.625691288 | K192: 26.40906355 | L192: 8.151708356 | M192: 7.072655249 | N192: 7.344784872 | O192: 7.344784872 | P192: 1
A193: 0.845 | B193: 8.505324062 | C193: 9.110938979 | D193: 9.110938979 | E193: 1 | F193: -2.059960823 | G193: -1.844986221 | H193: -0.916222917 | I193: 7.291782657 | J193: 3.572110173 | K193: 26.09938349 | L193: 8.119733087 | M193: 7.109114163 | N193: 7.362645423 | O193: 7.362645423 | P193: 1
A194: 0.85 | B194: 8.555651423 | C194: 9.14402486 | D194: 9.14402486 | E194: 1 | F194: -2.043832028 | G194: -1.835427196 | H194: -0.8991420162 | I194: 7.282605521 | J194: 3.518614463 | K194: 25.78766143 | L194: 8.088077084 | M194: 7.14552719 | N194: 7.380238495 | O194: 7.380238495 | P194: 1
A195: 0.855 | B195: 8.605978784 | C195: 9.176865742 | D195: 9.176865742 | E195: 1 | F195: -2.027926718 | G195: -1.82597052 | H195: -0.8822235753 | I195: 7.273475669 | J195: 3.465203345 | K195: 25.47389754 | L195: 8.056741433 | M195: 7.181894569 | N195: 7.397564512 | O195: 7.397564512 | P195: 1
A196: 0.86 | B196: 8.656306146 | C196: 9.209461623 | D196: 9.209461623 | E196: 1 | F196: -2.012243558 | G196: -1.816615896 | H196: -0.8654656684 | I196: 7.264392589 | J196: 3.411876017 | K196: 25.15809248 | L196: 8.025727235 | M196: 7.218216532 | N196: 7.414623892 | O196: 7.414623892 | P196: 1
A197: 0.865 | B197: 8.706633507 | C197: 9.241812505 | D197: 9.241812505 | E197: 1 | F197: -1.996781227 | G197: -1.807363037 | H197: -0.8488663744 | I197: 7.255355774 | J197: 3.358631685 | K197: 24.84024743 | L197: 7.995035597 | M197: 7.254493311 | N197: 7.431417051 | O197: 7.431417051 | P197: 1
A198: 0.87 | B198: 8.756960868 | C198: 9.273918386 | D198: 9.273918386 | E198: 1 | F198: -1.98153842 | G198: -1.798211658 | H198: -0.8324237763 | I198: 7.246364716 | J198: 3.305469566 | K198: 24.52036409 | L198: 7.964667642 | M198: 7.290725134 | N198: 7.447944398 | O198: 7.447944398 | P198: 1
A199: 0.875 | B199: 8.80728823 | C199: 9.305779268 | D199: 9.305779268 | E199: 1 | F199: -1.96651385 | G199: -1.789161484 | H199: -0.8161359614 | I199: 7.237418908 | J199: 3.252388887 | K199: 24.19844469 | L199: 7.934624498 | M199: 7.326912229 | N199: 7.464206343 | O199: 7.464206343 | P199: 1
A200: 0.88 | B200: 8.857615591 | C200: 9.337395149 | D200: 9.337395149 | E200: 1 | F200: -1.951706244 | G200: -1.780212242 | H200: -0.8000010206 | I200: 7.228517847 | J200: 3.199388881 | K200: 23.87449201 | L200: 7.904907304 | M200: 7.363054818 | N200: 7.480203287 | O200: 7.480203287 | P200: 1
A201: 0.885 | B201: 8.907942952 | C201: 9.368766031 | D201: 9.368766031 | E201: 1 | F201: -1.937114344 | G201: -1.771363669 | H201: -0.7840170486 | I201: 7.219661029 | J201: 3.146468796 | K201: 23.54850939 | L201: 7.875517205 | M201: 7.399153123 | N201: 7.495935631 | O201: 7.495935631 | P201: 1
A202: 0.89 | B202: 8.958270314 | C202: 9.399891912 | D202: 9.399891912 | E202: 1 | F202: -1.922736909 | G202: -1.762615504 | H202: -0.7681821434 | I202: 7.210847951 | J202: 3.093627885 | K202: 23.22050074 | L202: 7.846455357 | M202: 7.435207363 | N202: 7.511403771 | O202: 7.511403771 | P202: 1
A203: 0.895 | B203: 9.008597675 | C203: 9.430772794 | D203: 9.430772794 | E203: 1 | F203: -1.908572712 | G203: -1.753967493 | H203: -0.7524944059 | I203: 7.202078114 | J203: 3.040865413 | K203: 22.89047055 | L203: 7.817722918 | M203: 7.471217753 | N203: 7.526608098 | O203: 7.526608098 | P203: 1
A204: 0.9 | B204: 9.058925036 | C204: 9.461408675 | D204: 9.461408675 | E204: 1 | F204: -1.89462054 | G204: -1.745419385 | H204: -0.7369519402 | I204: 7.193351017 | J204: 2.988180654 | K204: 22.55842391 | L204: 7.789321053 | M204: 7.507184508 | N204: 7.541549001 | O204: 7.541549001 | P204: 1
... 820 more rows

Sheet Sheet2

Sheet Sheet3
